bitfinex/quotes_SOLUSD_20260308
["timestamp","ask_amount","ask_price","bid_price","bid_amount"]
[1772983844716,12.68735355,82.018,81.964,0.48449498]
[1772983844919,0.49490799,82.017,81.964,0.48449498]
[1772983845835,0.49490799,82.015,81.967,0.48449498]
[1772983847226,0.49490799,82.015,81.956,61.00834594]
[1772983847227,0.49490799,82.009,81.961,12.20087662]
[1772983847430,0.49490799,81.999,81.953,0.48449498]
[1772983847946,0.49490799,81.989,81.946,30.9921322]
[1772983848324,0.49490799,81.989,81.946,0.48449498]
[1772983852849,0.49490799,81.987,81.946,12.68760574]
[1772983853148,0.49490799,81.987,81.947,0.48449498]
[1772983859643,0.49490799,81.985,81.949,0.48449498]
[1772983860937,0.28432314,82.013,81.949,0.48449498]
[1772983860938,12.19556813,81.997,81.95,0.48449498]
[1772983862158,0.49490799,81.996,81.953,0.48449498]
[1772983863955,42.39341724,82.0,81.955,0.49540312]
[1772983863956,0.47345728,81.994,81.955,0.49540312]
[1772983866043,0.49440648,81.992,81.956,12.70073958]
[1772983866243,0.49440648,81.992,81.956,12.20166918]
[1772983866772,42.68657079,81.993,81.956,12.20166918]
[1772983866773,0.49440648,81.989,81.956,12.20166918]
[1772983867359,0.49440648,81.989,81.957,0.4990704]
[1772983868159,12.69131334,81.988,81.959,0.4990704]
[1772983869562,12.69131334,81.988,81.961,0.4990704]
[1772983870252,12.19690686,81.988,81.961,0.4990704]
[1772983871155,12.68923099,82.002,81.961,0.4990704]
[1772983871355,0.49440648,82.001,81.961,0.4990704]
[1772983874167,12.19512195,82.0,81.963,0.4990704]
[1772983874358,12.68952843,82.0,81.963,0.4990704]
[1772983874748,0.49440648,81.999,81.963,0.4990704]
[1772983875562,12.19512195,82.0,81.963,0.78339354]
[1772983875764,12.1945146,82.005,81.964,0.4990704]
[1772983875968,12.68892108,82.005,81.964,0.4990704]
[1772983876364,12.68892108,82.005,81.942,1.22037538]
[1772983876365,0.49440648,82.027,81.967,0.4990704]
[1772983877070,0.49440648,82.027,81.974,0.4990704]
[1772983878557,0.49440648,82.025,81.977,0.4990704]
[1772983879966,8.04381575,82.035,81.983,0.28432314]
[1772983880281,8.04381575,82.035,81.984,0.4990704]
[1772983880282,0.49440648,82.033,81.984,0.4990704]
[1772983880577,0.49440648,82.029,81.986,0.4990704]
[1772983881799,0.49440648,82.034,81.989,0.4990704]
[1772983883770,12.19021613,82.033,81.991,0.14216157]
[1772983884077,12.19021613,82.033,81.992,0.4990704]
[1772983884972,12.18957715,82.038,81.992,0.4990704]
[1772983885278,0.49440648,82.042,81.992,0.4990704]
[1772983885773,12.18902743,82.041,81.994,0.28432314]
[1772983885972,0.49440648,82.04,81.995,0.4990704]
[1772983886672,0.49440648,82.039,81.995,0.4990704]
[1772983887859,42.66159602,82.041,81.993,42.68657079]
[1772983887860,0.49440648,82.037,81.997,0.4990704]
[1772983888262,0.49440648,82.037,81.992,12.69532334]
[1772983888656,0.49440648,82.037,81.993,0.4990704]
[1772983889271,0.49440648,82.035,81.993,0.4990704]
[1772983889484,0.49440648,82.035,81.992,12.19625294]
[1772983890069,0.49440648,82.035,81.993,0.4990704]
[1772983890269,0.49440648,82.035,81.994,0.4990704]
[1772983892175,0.49440648,82.033,81.996,0.4990704]
[1772983893292,12.19006753,82.034,81.996,0.4990704]
[1772983895185,30.46944979,82.05,81.975,1.21988411]
[1772983895186,0.49941737,82.037,81.998,0.485775]
[1772983896182,12.18947317,82.038,81.999,0.485775]
[1772983896685,0.49941737,82.041,82.002,0.485775]
[1772983898769,0.49941737,82.054,82.005,0.485775]
[1772983898969,0.49941737,82.049,82.005,0.485775]
[1772983901568,0.49941737,82.047,82.007,0.485775]
[1772983901965,0.49941737,82.039,81.983,0.485775]
[1772983902187,0.49941737,82.039,81.892,48.8442499]
[1772983902188,0.49941737,82.029,81.977,0.485775]
[1772983903575,0.49941737,82.019,81.964,0.485775]
[1772983903886,103.62315306,82.028,81.966,12.20009468]
[1772983903887,0.49941737,81.999,81.966,12.20009468]
[1772983904300,0.49941737,81.999,81.964,0.485775]
[1772983905890,0.49941737,81.997,81.966,0.485775]
[1772983907897,12.19571686,81.996,81.968,0.485775]
[1772983908193,0.49941737,82.014,81.968,0.485775]
[1772983908577,0.49941737,82.013,81.968,0.485775]
[1772983909608,0.49941737,82.011,81.97,0.485775]
[1772983912292,0.49941737,82.009,81.966,12.20013061]
[1772983912494,0.49941737,82.009,81.967,0.485775]
[1772983914296,0.49941737,82.007,81.969,0.485775]
[1772983915796,0.49941737,82.005,81.971,0.485775]
[1772983917384,0.49941737,82.003,81.973,0.485775]
[1772983919197,0.49941737,82.009,81.973,0.485775]
[1772983919402,0.49941737,82.013,81.974,12.19898992]
[1772983919803,0.49941737,82.013,81.975,0.485775]
[1772983920499,42.67564074,82.014,81.967,0.485775]
[1772983920500,0.49941737,82.009,81.967,0.485775]
[1772983922111,0.49941737,82.007,81.969,0.485775]
[1772983925093,0.466786,82.005,81.971,0.49504075]
[1772983926609,0.466786,82.005,81.966,12.20012506]
[1772983926830,0.466786,81.999,81.956,0.49504075]
[1772983927221,0.466786,81.997,81.957,0.49504075]
[1772983929610,0.466786,81.995,81.959,0.49504075]
[1772983930909,0.466786,81.993,81.961,0.49504075]
[1772983931314,0.466786,81.993,81.957,0.49504075]
[1772983931515,0.466786,81.993,81.945,30.50811]
[1772983931516,0.466786,81.989,81.936,0.49504075]
[1772983931809,0.466786,81.989,81.937,0.49504075]
[1772983932394,0.466786,81.989,81.938,0.49504075]
[1772983933315,0.466786,82.002,81.944,0.49504075]
[1772983934816,0.466786,82.02,81.964,0.77936389]
[1772983934995,0.466786,82.02,81.965,0.49504075]
[1772983935197,12.1922969,82.019,81.968,0.49504075]
[1772983935517,0.466786,82.018,81.968,0.49504075]
[1772983938208,9.82737534,82.11,81.971,0.49504075]
[1772983938209,12.65830233,82.025,81.971,0.49504075]
[1772983938608,30.47634375,82.031,81.982,0.49504075]
[1772983938609,0.466786,82.031,81.982,0.49504075]
[1772983940716,12.19066195,82.03,81.984,0.77936389]
[1772983940911,12.19066195,82.03,81.985,0.49504075]
[1772983941111,12.19066195,82.03,81.987,0.49504075]
[1772983941613,0.466786,82.031,81.987,0.49504075]
[1772983941915,0.466786,82.029,81.987,0.49504075]
[1772983944320,0.466786,82.027,81.989,0.49504075]
[1772983948719,0.466786,82.025,81.991,0.49504075]
[1772983950403,12.19075131,82.03,81.991,0.49504075]
[1772983950722,12.65753731,82.03,81.993,0.49504075]
[1772983950921,0.466786,82.029,81.993,0.49504075]
[1772983951909,0.466786,82.029,81.994,0.49504075]
[1772983953327,0.46154123,82.046,81.997,0.48651091]
[1772983954624,0.46154123,82.048,82.001,0.48651091]
[1772983955226,0.46154123,82.048,82.004,0.48651091]
[1772983955425,0.2,82.06,82.007,0.48651091]
[1772983955734,0.46154123,82.067,82.012,0.48651091]
[1772983955918,0.2,82.07,82.012,0.48651091]
[1772983956120,0.2,82.07,82.022,0.48651091]
[1772983957307,0.46154123,82.069,82.025,0.48651091]
[1772983957725,0.46154123,82.067,82.025,0.48651091]
[1772983960431,0.46154123,82.065,82.027,0.48651091]
[1772983962511,0.46154123,82.059,82.021,0.48651091]
[1772983962716,0.46154123,82.059,82.007,0.48651091]
[1772983964633,0.46154123,82.057,82.009,0.48651091]
[1772983965639,0.46154123,82.057,82.01,0.48651091]
[1772983966927,0.46154123,82.055,82.013,0.48651091]
[1772983969137,0.46154123,82.062,82.016,0.48651091]
[1772983969340,0.46154123,82.068,82.016,0.48651091]
[1772983971739,0.46154123,82.066,82.019,0.48651091]
[1772983974437,0.46154123,82.066,82.022,0.48651091]
[1772983975117,12.18546274,82.065,82.022,0.48651091]
[1772983975330,12.84627118,82.07,82.022,0.48651091]
[1772983975530,0.46154123,82.069,82.022,0.48651091]
[1772983976236,0.46154123,82.069,82.025,0.48651091]
[1772983979225,0.46154123,82.069,82.027,0.48651091]
[1772983981446,0.46154123,82.067,82.03,0.48651091]
[1772983983540,0.46154123,82.067,82.031,42.66679669]
[1772983983745,0.46154123,82.067,82.033,0.49423477]
[1772983984647,0.48453659,82.069,82.035,0.49679857]
[1772983986245,0.48453659,82.068,82.034,12.19006753]
[1772983986452,0.48453659,82.068,82.034,12.6868661]
[1772983987353,0.48453659,82.066,82.035,0.49679857]
[1772983987735,0.2,82.07,82.035,0.49679857]
[1772983988333,0.48453659,82.075,82.035,0.49679857]
[1772983988860,0.48453659,82.075,82.037,0.49679857]
[1772983989843,0.48453659,82.073,82.037,0.49679857]
[1772983991163,0.48453659,82.071,82.039,0.49679857]
[1772983993358,0.48453659,82.071,82.041,0.49679857]
[1772983995257,0.48453659,82.076,82.042,0.49679857]
[1772983995455,12.38329458,82.08,82.044,0.49679857]
[1772983995761,12.86783117,82.08,82.044,0.49679857]
[1772983995955,0.48453659,82.079,82.044,0.49679857]
[1772983997162,0.48453659,82.079,82.046,0.49679857]
[1772983998552,0.48453659,82.077,82.046,0.49679857]
[1772984000263,0.48453659,82.077,82.048,0.49679857]
[1772984000462,0.48453659,82.075,82.048,0.49679857]
[1772984004273,0.48453659,82.075,82.05,0.49679857]
[1772984007780,0.48453659,82.075,82.052,0.49679857]
[1772984009259,0.48453659,82.075,82.054,0.49679857]
[1772984010661,0.2,82.08,82.041,0.49679857]
[1772984010662,0.48453659,82.073,82.041,0.49679857]
[1772984010875,0.48453659,82.073,82.035,30.47462938]
[1772984010876,0.48453659,82.073,82.036,0.49679857]
[1772984011049,0.48453659,82.073,82.036,12.68656891]
[1772984011253,0.48453659,82.071,82.036,12.68656891]
[1772984012150,0.48453659,82.071,82.037,0.49679857]
[1772984014563,0.48830275,82.069,82.038,12.67306331]
[1772984015081,0.48830275,82.069,82.039,0.48359014]
[1772984018181,0.48830275,82.067,82.04,12.18917601]
[1772984018562,0.48830275,82.067,82.032,0.48359014]
[1772984018786,0.48830275,82.067,82.018,0.48359014]
[1772984020879,0.48830275,82.074,82.021,0.48359014]
[1772984021488,0.48830275,82.081,82.03,0.48359014]
[1772984021686,0.48830275,82.086,82.03,0.48359014]
[1772984022170,0.48830275,82.086,82.033,3.69383402]
[1772984022372,0.2,82.1,82.045,0.48359014]
[1772984022683,0.48830275,82.105,82.05,0.48359014]
[1772984022877,12.66812367,82.104,82.053,0.48359014]
[1772984023085,0.48830275,82.103,82.053,0.48359014]
[1772984024873,0.48830275,82.103,82.055,0.48359014]
[1772984025389,0.48830275,82.101,82.055,0.48359014]
[1772984026490,0.48830275,82.099,82.045,12.18843317]
[1772984026786,0.48830275,82.099,82.046,0.48359014]
[1772984026982,0.48830275,82.097,82.048,0.48359014]
[1772984029685,12.18086143,82.096,82.051,0.48359014]
[1772984030068,0.48830275,82.095,82.051,0.48359014]
[1772984030989,0.48830275,82.099,82.051,0.48359014]
[1772984032088,0.48830275,82.107,82.054,0.48359014]
[1772984033594,0.48830275,82.105,82.056,0.28432314]
[1772984033785,0.48830275,82.105,82.057,0.48359014]
[1772984034897,0.48830275,82.103,82.06,0.48359014]
[1772984036195,0.48830275,82.101,82.063,0.48359014]
[1772984039293,0.48830275,82.101,82.065,0.48359014]
[1772984039806,0.48830275,82.099,82.065,0.48359014]
[1772984042300,0.48830275,82.099,82.067,0.48359014]
[1772984043188,0.47965693,82.097,82.067,0.48359014]
[1772984043611,0.47965693,82.097,82.066,12.18531425]
[1772984043914,0.47965693,82.097,81.981,54.8]
[1772984043915,0.47965693,82.097,82.052,0.4674654]
[1772984044408,0.47943174,82.095,82.052,12.65481301]
[1772984045209,0.47943174,82.089,82.052,12.18734761]
[1772984046509,0.47943174,82.087,82.048,0.48589959]
[1772984048611,0.47943174,82.085,82.049,12.18783897]
[1772984048814,0.47943174,82.085,82.05,0.48589959]
[1772984050419,0.47943174,82.083,82.051,12.67344148]
[1772984050598,0.47943174,82.083,82.051,12.18754189]
[1772984055207,0.47943174,82.081,82.05,0.48589959]
[1772984057613,0.47943174,82.079,82.051,12.18754189]
[1772984059122,0.47943174,82.077,82.051,12.18754189]
[1772984060913,0.47943174,82.077,82.051,12.67344148]
[1772984061717,0.47943174,82.075,82.045,0.48589959]
[1772984062916,0.47943174,82.073,82.045,0.48589959]
[1772984063117,0.47943174,82.073,82.041,12.18892584]
[1772984063501,0.47943174,82.073,82.041,12.67482543]
[1772984063901,0.47943174,82.073,82.041,12.18892584]
[1772984064102,0.47943174,82.073,82.041,12.67482543]
[1772984064805,0.47943174,82.069,82.03,0.48589959]
[1772984065009,0.47943174,82.067,82.03,12.67656154]
[1772984065320,0.47943174,82.067,82.031,0.48589959]
[1772984066237,0.47943174,82.059,82.03,12.19066195]
[1772984066537,0.47943174,82.059,82.023,0.48589959]
[1772984067207,0.47943174,82.057,82.023,0.48589959]
[1772984067429,0.47943174,82.049,82.012,0.48589959]
[1772984069310,0.47943174,82.047,82.004,0.48589959]
[1772984071423,0.47943174,82.045,82.005,12.19437839]
[1772984071608,0.47943174,82.045,82.006,0.48589959]
[1772984074428,0.47167303,82.043,82.008,0.49607645]
[1772984076419,12.18887886,82.042,82.009,12.1937836]
[1772984076625,0.47167303,82.041,82.01,0.49607645]
[1772984078524,0.47167303,82.039,82.012,0.49607645]
[1772984078923,0.47167303,82.039,82.008,0.49607645]
[1772984080433,0.47167303,82.037,82.008,0.49607645]
[1772984081419,0.47167303,82.037,82.009,12.68986005]
[1772984081618,0.47167303,82.037,82.01,0.49607645]
[1772984082232,12.18893405,82.042,82.01,0.49607645]
[1772984082535,0.47167303,82.039,82.012,0.49607645]
[1772984085341,0.47167303,82.037,82.014,0.49607645]
[1772984085839,0.47167303,82.037,82.008,0.49607645]
[1772984086712,0.47167303,82.037,82.008,12.68995794]
[1772984086913,0.47167303,82.037,82.008,12.19388149]
[1772984087137,0.47167303,82.037,81.991,30.49105547]
[1772984087313,0.47167303,82.027,81.993,0.49607645]
[1772984088740,12.19095918,82.028,81.993,0.49607645]
[1772984088741,0.47167303,82.019,81.993,0.49607645]
[1772984089840,0.47167303,82.017,81.994,12.19601434]
[1772984090220,0.47167303,82.017,81.99,12.19649742]
[1772984090541,0.47167303,82.017,81.99,12.69257387]
[1772984091130,0.47167303,82.015,81.991,0.49607645]
[1772984093518,0.47167303,82.013,81.991,0.49607645]
[1772984094143,0.47167303,81.999,81.968,0.49607645]
[1772984094935,0.47167303,81.989,81.963,0.49607645]
[1772984095846,0.47167303,81.987,81.965,0.49607645]
[1772984097844,0.47167303,81.987,81.966,12.20018056]
[1772984098029,0.47167303,81.987,81.967,0.49607645]
[1772984099123,0.47167303,81.985,81.967,0.49607645]
[1772984099322,0.47167303,81.985,81.961,12.2009183]
[1772984099542,0.47167303,81.985,81.956,12.69760779]
[1772984100044,0.47167303,81.977,81.951,0.49607645]
[1772984101144,0.47167303,81.969,81.95,0.1]
[1772984101342,0.47167303,81.949,81.922,0.49607645]
[1772984101543,0.47167303,81.969,81.924,0.49607645]
[1772984102133,0.47167303,81.967,81.926,0.49607645]
[1772984103048,12.19988288,81.968,81.926,0.49607645]
[1772984103049,0.46557597,81.959,81.926,0.49607645]
[1772984104142,12.66685472,81.959,81.928,0.47600302]
[1772984104653,12.20127875,81.959,81.928,0.47600302]
[1772984104839,0.45592141,81.958,81.928,0.47600302]
[1772984105350,0.45592141,81.958,81.93,0.47553375]
[1772984105965,0.45592141,81.983,81.93,0.47553375]
[1772984106136,0.45592141,81.988,81.931,0.47553375]
[1772984106832,0.72100001,81.99,81.936,3.69383402]
[1772984107044,0.72100001,81.99,81.941,0.47553375]
[1772984107244,0.45592141,81.988,81.943,0.14216157]
[1772984107427,0.45592141,81.988,81.947,0.47553375]
[1772984108238,0.72100001,81.99,81.947,0.47553375]
[1772984108646,12.1937836,82.009,81.95,0.47553375]
[1772984109255,0.45592141,82.008,81.95,0.47553375]
[1772984109463,12.19408099,82.007,81.952,0.47553375]
[1772984109961,0.45592141,82.006,81.952,0.47553375]
[1772984111435,0.45592141,82.006,81.955,0.47553375]
[1772984111835,12.65027494,82.006,81.955,0.47553375]
[1772984112465,12.19435353,82.006,81.955,0.47553375]
[1772984112761,0.45592141,82.005,81.955,0.47553375]
[1772984113963,0.45592141,82.005,81.958,0.47553375]
[1772984114138,12.6504485,82.004,81.958,0.47553375]
[1772984114340,0.45592141,82.003,81.958,0.47553375]
[1772984114861,0.45592141,82.003,81.956,12.20166918]
[1772984115159,0.45592141,81.989,81.951,0.71607035]
[1772984115348,42.68084483,82.004,81.951,0.71607035]
[1772984115349,0.45592141,81.979,81.951,0.51598573]
[1772984115552,0.45592141,81.969,81.951,0.11581649]
[1772984115770,0.45592141,81.969,81.951,0.04836143]
[1772984116056,12.19988288,81.968,81.951,0.54856817]
[1772984116642,12.19988288,81.968,81.951,0.04836143]
[1772984117369,42.69959008,81.968,81.951,0.04836143]
[1772984118658,6.37024291,81.998,81.951,0.04836143]
[1772984118659,0.28432314,81.989,81.951,0.54856817]
[1772984119061,4.75927279,81.98,81.951,0.04836143]
[1772984119262,4.75927279,81.98,81.952,0.50020674]
[1772984119640,4.75927279,81.98,81.951,0.04836143]
[1772984120463,12.19824589,81.979,81.951,0.04836143]
[1772984122257,12.19824589,81.979,81.951,0.54856817]
[1772984122646,12.19690686,81.988,81.953,0.50020674]
[1772984122864,12.19422969,82.006,81.953,0.50020674]
[1772984123449,0.28432314,82.005,81.953,0.50020674]
[1772984123643,12.19422969,82.006,81.953,0.50020674]
[1772984123849,30.48757992,82.001,81.955,0.50020674]
[1772984125170,4.75927279,82.0,81.955,0.50020674]
[1772984125746,30.48757992,82.001,81.955,0.50020674]
[1772984125948,4.75927279,82.0,81.957,0.50020674]
[1772984127080,4.75927279,81.98,81.951,0.04836143]
[1772984127257,1.88432314,81.995,81.951,0.04836143]
[1772984127460,4.75927279,81.99,81.951,0.54856817]
[1772984127655,0.28432314,81.989,81.951,0.54856817]
[1772984128364,4.75927279,81.98,81.951,0.54856817]
[1772984129187,4.75927279,81.98,81.951,0.04836143]
[1772984129654,4.75927279,81.98,81.951,0.54856817]
[1772984130754,12.19824589,81.979,81.951,0.54856817]
[1772984131782,12.19824589,81.979,81.951,12.25066067]
[1772984131961,12.19824589,81.979,81.952,0.50020674]
[1772984132365,0.28432314,81.987,81.952,0.50020674]
[1772984132775,30.49226716,81.988,81.954,0.50020674]
[1772984134882,4.75927279,81.98,81.954,0.50020674]
[1772984135182,0.48275072,81.969,81.912,0.14216157]
[1772984135375,0.48275072,81.969,81.912,0.28432314]
[1772984135576,0.48275072,81.969,81.914,3.69383402]
[1772984137091,0.45174883,81.967,81.916,0.46813667]
[1772984138582,12.19988288,81.968,81.916,0.46813667]
[1772984138785,12.65162807,81.968,81.916,0.46813667]
[1772984139171,0.45174159,81.967,81.918,0.46813667]
[1772984140596,12.20018056,81.966,81.92,0.46813667]
[1772984140991,12.20018056,81.966,81.921,0.46813667]
[1772984142306,0.14216157,81.992,81.921,0.46813667]
[1772984142307,12.19824589,81.979,81.921,0.46813667]
[1772984142595,0.45173104,81.978,81.921,0.46813667]
[1772984142909,0.45173104,81.969,81.924,0.46813667]
[1772984145797,0.45172084,81.967,81.926,0.46813667]
[1772984146903,0.45171424,81.959,81.926,0.46813667]
[1772984147090,0.45171424,81.959,81.911,0.46813667]
[1772984147298,0.45171424,81.958,81.912,0.46813667]
[1772984147882,0.451711,81.956,81.914,0.46813667]
[1772984150503,0.45170462,81.954,81.916,0.46813667]
[1772984151080,12.20181807,81.955,81.916,0.46813667]
[1772984151487,0.45170149,81.954,81.916,0.46813667]
[1772984152201,0.45169839,81.965,81.916,0.46813667]
[1772984152403,0.45169839,81.963,81.918,0.46813667]
[1772984153600,0.45169839,81.963,81.906,105.04469158]
[1772984153601,12.20077596,81.962,81.92,0.46813667]
[1772984153897,12.19981938,81.969,81.921,0.46813667]
[1772984154097,12.65151168,81.969,81.921,0.46813667]
[1772984155604,0.45168931,81.968,81.921,0.46813667]
[1772984156389,0.45168931,81.968,81.924,0.46813667]
[1772984157603,0.45168343,81.966,81.924,0.46813667]
[1772984158897,12.2003294,81.965,81.926,0.46813667]
[1772984159913,12.65200426,81.965,81.926,0.46813667]
[1772984160206,0.45167486,81.964,81.926,0.46813667]
[1772984161808,12.65229642,81.963,81.928,0.46813667]
[1772984162012,0.45166931,81.962,81.928,0.46813667]
[1772984165712,0.45166931,81.962,81.93,0.4713363]
[1772984165922,12.20092483,81.961,81.93,0.4713363]
[1772984166103,0.45165341,81.96,81.93,0.4713363]
[1772984167114,4.76482155,81.99,81.931,0.4713363]
[1772984167417,0.45165086,81.988,81.931,0.4713363]
[1772984167714,12.19393229,82.008,81.942,42.71313855]
[1772984167895,0.45164834,82.007,81.949,0.4713363]
[1772984168598,0.45164834,81.999,81.949,0.4713363]
[1772984174418,0.45163385,81.997,81.951,0.4713363]
[1772984176126,0.45163385,81.997,81.952,0.4713363]
[1772984176602,0.45162923,81.995,81.954,0.4713363]
[1772984181820,12.19601434,81.994,81.954,0.4713363]
[1772984182042,12.19601434,81.994,81.941,103.6]
[1772984182043,0.45161601,81.993,81.956,0.4713363]
[1772984183326,30.48822563,81.999,81.958,0.4713363]
[1772984183327,0.4516139,81.991,81.958,0.4713363]
[1772984184511,0.4516139,81.991,81.957,12.2015203]
[1772984185929,12.19660934,81.99,81.956,0.4713363]
[1772984186112,0.45160769,81.989,81.956,0.4713363]
[1772984187130,0.45160567,81.987,81.958,0.4713363]
[1772984189220,12.1972044,81.986,81.96,0.4713363]
[1772984189814,0.4516017,81.985,81.96,0.4713363]
[1772984196226,0.45158671,81.983,81.961,12.66002872]
[1772984197645,0.45158671,81.983,81.962,0.45910389]
[1772984199834,12.64937922,81.982,81.963,0.45910389]
[1772984200242,0.45157971,81.981,81.963,0.45910389]
[1772984200545,0.45157971,82.0,81.963,0.45910389]
[1772984201530,12.64670166,82.0,81.964,12.20047825]
[1772984201738,0.45157801,81.999,81.965,0.45910389]
[1772984202658,0.45157633,82.011,81.965,0.45910389]
[1772984203643,12.19363492,82.01,81.966,42.70063196]
[1772984203843,0.45157467,82.009,81.967,0.45910389]
[1772984207145,0.45156822,82.007,81.969,0.45910389]
[1772984210323,0.45156358,82.005,81.971,0.45910389]
[1772984212130,0.45156358,82.005,81.97,12.19958521]
[1772984212453,0.45156057,81.997,81.951,0.45910389]
[1772984213657,0.45155909,81.989,81.941,0.45910389]
[1772984213838,0.45155909,81.989,81.944,0.45910389]
[1772984214244,0.45155763,81.979,81.944,0.45910389]
[1772984214939,0.45155618,81.977,81.945,12.20330709]
[1772984215950,0.45155618,81.977,81.945,12.66241098]
[1772984218439,0.45155195,81.975,81.946,0.45910389]
[1772984218635,12.1986923,81.976,81.946,0.45910389]
[1772984219456,0.45155057,81.975,81.948,0.45910389]
[1772984220743,0.45155057,81.975,81.95,0.45910389]
[1772984221361,0.45154786,81.973,81.95,0.45910389]
[1772984224354,0.45154786,81.973,81.951,12.20241363]
[1772984224559,0.45154786,81.973,81.951,12.69039801]
[1772984224758,30.49457315,81.982,81.952,0.48798438]
[1772984224759,0.45154134,81.971,81.952,0.48798438]
[1772984224961,0.45154134,81.971,81.951,12.20241363]
[1772984225457,0.45154134,81.971,81.931,0.48798438]
[1772984225861,12.19928756,81.972,81.931,0.48798438]
[1772984225862,0.45153884,81.969,81.931,0.48798438]
[1772984226337,0.45153884,81.969,81.932,12.20524337]
[1772984226537,12.65133265,81.969,81.933,0.48798438]
[1772984226745,12.19979381,81.969,81.933,0.48798438]
[1772984226952,0.45153761,81.968,81.933,0.48798438]
[1772984227959,0.4515364,81.966,81.935,0.48798438]
[1772984230365,0.45153401,81.964,81.937,0.48798438]
[1772984233162,0.45153053,81.981,81.939,0.48798438]
[1772984233346,0.45153053,81.98,81.939,0.48798438]
[1772984234352,0.45152939,81.978,81.94,42.7141811]
[1772984234548,0.45152939,81.978,81.941,0.48798438]
[1772984237441,0.45152607,81.976,81.943,0.48798438]
[1772984239360,0.45152392,81.986,81.944,42.71209605]
[1772984239568,0.45152392,81.986,81.945,0.48798438]
[1772984244659,0.45152392,81.986,81.936,103.6]
[1772984244660,12.64678942,81.999,81.948,0.48798438]
[1772984244858,0.45151875,81.999,81.948,0.48798438]
[1772984245057,0.45151875,81.999,81.947,0.28432314]
[1772984245058,0.45151775,82.004,81.95,0.28432314]
[1772984245367,0.45151775,82.004,81.951,0.48798438]
[1772984247164,0.45151775,82.004,81.956,0.28432314]
[1772984247370,0.45151775,82.004,81.957,0.48798438]
[1772984247566,0.45151579,82.002,81.957,0.48798438]
[1772984249177,0.45151387,81.999,81.952,0.48798438]
[1772984249974,0.45151387,81.989,81.949,12.20257953]
[1772984250865,0.45151387,81.989,81.95,0.48798438]
[1772984251964,0.45151108,81.987,81.951,12.20241363]
[1772984252158,0.45151108,81.987,81.952,0.48798438]
[1772984254571,0.45150838,81.985,81.952,0.48798438]
[1772984255568,0.45150838,81.985,81.954,0.45172584]
[1772984255883,0.45150663,81.989,81.954,0.45172584]
[1772984256353,0.45150663,81.987,81.955,12.20181807]
[1772984256555,0.45150663,81.987,81.95,12.20242989]
[1772984257768,0.45150577,81.985,81.95,0.45172584]
[1772984259776,0.45150408,81.983,81.952,0.45172584]
[1772984260776,12.19750195,81.984,81.952,0.45172584]
[1772984261158,0.45150243,82.0,81.953,0.45172584]
[1772984261357,0.45150243,81.998,81.953,0.45172584]
[1772984262272,12.19556813,81.997,81.955,0.45172584]
[1772984262871,12.19411737,82.007,81.955,0.45172584]
[1772984263074,0.45150082,82.006,81.955,0.45172584]
[1772984265381,0.45149924,81.999,81.957,0.45172584]
[1772984265595,0.45149924,81.989,81.956,12.20166918]
[1772984266389,0.45149924,81.989,81.957,0.45172584]
[1772984266573,12.64840533,81.988,81.959,0.45172584]
[1772984266773,0.4514977,81.987,81.959,0.45172584]
[1772984268084,0.4514977,81.987,81.958,12.20137143]
[1772984268690,0.45149694,81.985,81.957,0.45172584]
[1772984270187,12.64812675,81.99,81.957,0.45172584]
[1772984270392,12.19663129,81.99,81.957,0.45172584]
[1772984270592,0.45149546,81.995,81.959,0.45172584]
[1772984272808,0.45149329,82.001,81.961,0.45172584]
[1772984273090,0.45149329,82.018,81.962,0.45172584]
[1772984274885,0.45149189,82.016,81.964,0.45172584]
[1772984275068,0.45149189,82.021,81.965,0.45172584]
[1772984275689,0.45149189,82.019,81.965,0.45172584]
[1772984277076,0.45149051,82.017,81.968,0.45172584]
[1772984279100,0.45148917,82.015,81.97,0.45172584]
[1772984279480,0.45148917,82.015,81.971,0.45172584]
[1772984280397,0.45148852,82.021,81.971,0.45172584]
[1772984281099,12.19150949,82.025,81.974,0.45172584]
[1772984281274,0.45148786,82.038,81.977,0.45172584]
[1772984283985,0.45074726,82.036,81.982,0.49560332]
[1772984284180,0.45074726,82.036,81.983,0.49560332]
[1772984286682,0.45148351,82.034,81.985,0.49986752]
[1772984288589,0.45148351,82.034,81.988,0.49986752]
[1772984288790,0.45148351,82.034,81.991,0.49986752]
[1772984290382,0.45148118,82.049,81.994,0.49986752]
[1772984290704,0.45148118,82.049,81.992,3.69383402]
[1772984290705,1.6,82.071,82.0,0.49986752]
[1772984290903,12.18368117,82.077,82.002,0.49986752]
[1772984291096,0.45148061,82.076,82.005,0.49986752]
[1772984291403,0.2,82.08,82.019,0.49986752]
[1772984292404,0.2,82.08,82.021,0.49986752]
[1772984293205,0.2,82.08,82.022,103.6307332]
[1772984293406,0.4514795,82.069,82.026,0.49986752]
[1772984294386,0.4514795,82.069,82.025,3.69383402]
[1772984294387,0.45147895,82.049,81.996,0.49986752]
[1772984294600,0.45147895,82.074,81.996,0.49986752]
[1772984294801,0.45147895,82.049,81.996,0.49986752]
[1772984295405,0.45147895,82.049,81.999,0.49986752]